[Event "Grandmaster Triathlon - Blitz (GM1)"]
[Site "Biel, Switzerland"]
[Date "2026.07.19"]
[Round "2.2"]
[White "Erdogmus, Yagiz Kaan"]
[Black "Suleymanli, Aydin"]
[Result "1/2-1/2"]
[TimeControl "3 min + 2 sec"]
[WhiteTitle "-"]
[BlackTitle "-"]
[WhiteFideId "44599790"]
[BlackFideId "13413937"]
[WhiteElo "2546"]
[BlackElo "2559"]

1. e4 {[%clk 00:03:02]} {[%emt 00:00:02]} c6 {[%clk 00:03:04]} {[%emt
00:00:01]} 2. Nc3 {[%clk 00:03:03]} {[%emt 00:00:01]} d5 {[%clk 00:03:05]}
{[%emt 00:00:01]} 3. Qf3 {[%clk 00:03:04]} dxe4 {[%clk 00:03:02]} {[%emt
00:00:05]} 4. Nxe4 {[%clk 00:03:05]} {[%emt 00:00:01]} Nd7 {[%clk 00:03:02]}
{[%emt 00:00:01]} 5. d4 {[%clk 00:03:05]} {[%emt 00:00:02]} Ndf6 {[%clk
00:03:03]} {[%emt 00:00:01]} 6. c3 {[%clk 00:02:51]} {[%emt 00:00:16]} Bg4
{[%clk 00:03:01]} {[%emt 00:00:04]} 7. Qf4 {[%clk 00:02:43]} {[%emt 00:00:10]}
e6 {[%clk 00:02:53]} {[%emt 00:00:09]} 8. Bd3 {[%clk 00:02:38]} {[%emt
00:00:08]} Bh5 {[%clk 00:02:53]} {[%emt 00:00:03]} 9. Qh4 {[%clk 00:01:48]}
{[%emt 00:00:52]} Be7 {[%clk 00:01:47]} {[%emt 00:01:07]} 10. Ng3 {[%clk
00:01:49]} {[%emt 00:00:02]} Qd5 {[%clk 00:01:23]} {[%emt 00:00:26]} 11. Nxh5
{[%clk 00:01:44]} {[%emt 00:00:07]} Nxh5 {[%clk 00:01:21]} {[%emt 00:00:04]} 12.
Qh3 {[%clk 00:01:44]} {[%emt 00:00:01]} Bd6 {[%clk 00:01:09]} {[%emt 00:00:15]}
13. Ne2 {[%clk 00:01:41]} {[%emt 00:00:06]} Nhf6 {[%clk 00:01:00]} {[%emt
00:00:11]} 14. Nf4 {[%clk 00:01:34]} {[%emt 00:00:08]} Qa5 {[%clk 00:00:50]}
{[%emt 00:00:12]} 15. O-O {[%clk 00:01:28]} {[%emt 00:00:08]} Qc7 {[%clk
00:00:52]} 16. g3 {[%clk 00:01:04]} {[%emt 00:00:27]} O-O-O {[%clk 00:00:45]}
{[%emt 00:00:09]} 17. a4 {[%clk 00:00:57]} {[%emt 00:00:09]} Ne7 {[%clk
00:00:37]} {[%emt 00:00:09]} 18. a5 {[%clk 00:00:53]} {[%emt 00:00:06]} a6
{[%clk 00:00:39]} 19. Re1 {[%clk 00:00:53]} {[%emt 00:00:01]} Kb8 {[%clk
00:00:34]} {[%emt 00:00:07]} 20. Bf1 {[%clk 00:00:45]} {[%emt 00:00:11]} h5
{[%clk 00:00:34]} {[%emt 00:00:02]} 21. Nd3 {[%clk 00:00:33]} {[%emt 00:00:14]}
h4 {[%clk 00:00:30]} {[%emt 00:00:06]} 22. Qg2 {[%clk 00:00:32]} {[%emt
00:00:03]} hxg3 {[%clk 00:00:30]} {[%emt 00:00:02]} 23. hxg3 {[%clk 00:00:33]}
Nf5 {[%clk 00:00:26]} {[%emt 00:00:06]} 24. Ne5 {[%clk 00:00:32]} {[%emt
00:00:03]} Rh7 {[%clk 00:00:22]} {[%emt 00:00:05]} 25. Nc4 {[%clk 00:00:26]}
{[%emt 00:00:09]} Rdh8 {[%emt 00:00:04]} 26. Nxd6 {[%clk 00:00:18]} {[%emt
00:00:09]} Nxd6 {[%clk 00:00:21]} {[%emt 00:00:03]} 27. Qf3 {[%clk 00:00:19]}
{[%emt 00:00:01]} Rh5 {[%clk 00:00:13]} {[%emt 00:00:09]} 28. Bg2 {[%clk
00:00:20]} {[%emt 00:00:02]} Rf5 {[%clk 00:00:13]} {[%emt 00:00:02]} 29. Qe2
{[%clk 00:00:19]} {[%emt 00:00:03]} Rfh5 {[%clk 00:00:10]} {[%emt 00:00:05]} 30.
Bf4 {[%clk 00:00:20]} {[%emt 00:00:01]} Nd5 {[%clk 00:00:11]} {[%emt 00:00:01]}
31. Be5 {[%clk 00:00:21]} {[%emt 00:00:01]} f6 {[%clk 00:00:05]} {[%emt
00:00:08]} 32. Bxd6 {[%clk 00:00:22]} {[%emt 00:00:01]} Qxd6 {[%clk 00:00:06]}
33. Qxe6 {[%clk 00:00:23]} {[%emt 00:00:01]} Qc7 {[%clk 00:00:05]} {[%emt
00:00:03]} 34. Qg4 {[%clk 00:00:17]} {[%emt 00:00:07]} Ka7 {[%clk 00:00:06]}
{[%emt 00:00:01]} 35. c4 {[%clk 00:00:09]} {[%emt 00:00:11]} f5 {[%clk
00:00:04]} {[%emt 00:00:04]} 36. Qf3 {[%clk 00:00:07]} {[%emt 00:00:03]} Nf6
{[%clk 00:00:04]} {[%emt 00:00:02]} 37. d5 {[%clk 00:00:08]} {[%emt 00:00:02]}
f4 {[%clk 00:00:04]} {[%emt 00:00:02]} 38. dxc6 {[%clk 00:00:08]} {[%emt
00:00:02]} fxg3 {[%clk 00:00:05]} 39. Qxg3 {[%clk 00:00:05]} {[%emt 00:00:05]}
Qxg3 {[%clk 00:00:04]} {[%emt 00:00:03]} 40. fxg3 {[%clk 00:00:06]} {[%emt
00:00:01]} bxc6 {[%clk 00:00:05]} 41. Bxc6 {[%clk 00:00:05]} {[%emt 00:00:02]}
Rc5 {[%clk 00:00:06]} {[%emt 00:00:01]} 42. Bg2 {[%clk 00:00:04]} {[%emt
00:00:03]} Rxc4 {[%clk 00:00:06]} {[%emt 00:00:03]} 43. Re7+ {[%clk 00:00:05]}
{[%emt 00:00:01]} Kb8 {[%clk 00:00:07]} 44. Rxg7 {[%clk 00:00:05]} {[%emt
00:00:02]} Rg8 {[%clk 00:00:05]} {[%emt 00:00:03]} 45. Rxg8+ {[%clk 00:00:03]}
{[%emt 00:00:04]} Nxg8 {[%clk 00:00:06]} 46. Bd5 {[%clk 00:00:03]} {[%emt
00:00:02]} Rg4 {[%clk 00:00:07]} 47. Kf2 {[%clk 00:00:03]} {[%emt 00:00:02]}
Nf6 {[%clk 00:00:09]} 48. Bf3 {[%clk 00:00:04]} {[%emt 00:00:02]} Rb4 {[%clk
00:00:10]} 49. Ra2 {[%clk 00:00:05]} {[%emt 00:00:01]} Kc7 {[%clk 00:00:11]} 50.
Be2 {[%clk 00:00:06]} Rb3 {[%clk 00:00:09]} {[%emt 00:00:04]} 51. Bxa6 {[%clk
00:00:05]} {[%emt 00:00:03]} Ne4+ {[%clk 00:00:09]} {[%emt 00:00:01]} 52. Ke2
{[%clk 00:00:06]} Rxg3 {[%clk 00:00:09]} {[%emt 00:00:03]} 53. Bc4 {[%clk
00:00:05]} {[%emt 00:00:03]} Kb8 {[%clk 00:00:07]} {[%emt 00:00:05]} 54. Bd5
{[%clk 00:00:04]} {[%emt 00:00:03]} Nc5 {[%clk 00:00:06]} {[%emt 00:00:03]} 55.
Kd2 {[%clk 00:00:03]} {[%emt 00:00:03]} Rd3+ {[%clk 00:00:06]} {[%emt
00:00:01]} 56. Kc2 {[%clk 00:00:05]} Rxd5 {[%clk 00:00:07]} 57. Kc3 {[%clk
00:00:06]} Na6 {[%clk 00:00:08]} {[%emt 00:00:01]} 58. b4 {[%clk 00:00:07]}
{[%emt 00:00:01]} Rh5 {[%clk 00:00:09]} {[%emt 00:00:02]} 59. Rb2 {[%clk
00:00:08]} {[%emt 00:00:01]} Nc7 {[%clk 00:00:08]} {[%emt 00:00:02]} 60. b5
{[%clk 00:00:09]} Rxb5 {[%clk 00:00:07]} {[%emt 00:00:03]} 61. Rxb5+ {[%clk
00:00:10]} {[%emt 00:00:01]} Nxb5+ {[%clk 00:00:09]} 62. Kb4 {[%clk 00:00:12]}
Nc7 {[%clk 00:00:10]} {[%emt 00:00:01]} 63. a6 {[%clk 00:00:13]} Nxa6+ {[%clk
00:00:11]} {[%emt 00:00:01]} 1/2-1/2

[Event "Grandmaster Triathlon - Blitz (GM1)"]
[Site "Biel, Switzerland"]
[Date "2026.07.19"]
[Round "2.3"]
[White "Aronian, Levon"]
[Black "Le, Quang Liem"]
[Result "1-0"]
[TimeControl "3 min + 2 sec"]
[WhiteTitle "-"]
[BlackTitle "-"]
[WhiteFideId "13300474"]
[BlackFideId "12401137"]
[WhiteElo "2700"]
[BlackElo "2690"]

1. e4 {[%clk 00:03:03]} e5 {[%clk 00:03:03]} {[%emt 00:00:01]} 2. Bc4 {[%clk
00:03:03]} {[%emt 00:00:01]} Nf6 {[%clk 00:03:01]} {[%emt 00:00:04]} 3. d3
{[%clk 00:03:04]} Bc5 {[%clk 00:03:02]} {[%emt 00:00:01]} 4. Nc3 {[%clk
00:03:05]} {[%emt 00:00:02]} c6 {[%clk 00:02:59]} {[%emt 00:00:06]} 5. Qf3
{[%clk 00:03:00]} {[%emt 00:00:06]} d6 {[%clk 00:02:57]} {[%emt 00:00:04]} 6.
Nge2 {[%clk 00:02:54]} {[%emt 00:00:08]} b5 {[%clk 00:02:53]} {[%emt 00:00:06]}
7. Bb3 {[%clk 00:02:55]} {[%emt 00:00:01]} a5 {[%clk 00:02:54]} 8. a3 {[%clk
00:02:54]} {[%emt 00:00:03]} Be6 {[%clk 00:02:54]} {[%emt 00:00:03]} 9. Bxe6
{[%clk 00:01:59]} {[%emt 00:00:57]} fxe6 {[%clk 00:02:54]} {[%emt 00:00:02]} 10.
Qh3 {[%clk 00:02:00]} {[%emt 00:00:01]} Qe7 {[%clk 00:02:49]} {[%emt 00:00:07]}
11. f4 {[%clk 00:01:47]} {[%emt 00:00:15]} O-O {[%clk 00:02:03]} {[%emt
00:00:48]} 12. g4 {[%clk 00:01:35]} {[%emt 00:00:14]} exf4 {[%clk 00:01:52]}
{[%emt 00:00:13]} 13. g5 {[%clk 00:01:35]} {[%emt 00:00:03]} Ne8 {[%clk
00:01:39]} {[%emt 00:00:14]} 14. Nxf4 {[%clk 00:01:24]} {[%emt 00:00:13]} Nc7
{[%clk 00:01:40]} 15. Bd2 {[%clk 00:00:58]} {[%emt 00:00:28]} e5 {[%clk
00:01:38]} {[%emt 00:00:05]} 16. g6 {[%clk 00:00:55]} {[%emt 00:00:05]} h6
{[%clk 00:01:37]} {[%emt 00:00:03]} 17. Nh5 {[%clk 00:00:56]} Qe6 {[%clk
00:01:32]} {[%emt 00:00:07]} 18. Qxe6+ {[%clk 00:00:38]} {[%emt 00:00:20]} Nxe6
{[%clk 00:01:32]} {[%emt 00:00:01]} 19. O-O-O {[%clk 00:00:30]} {[%emt
00:00:11]} b4 {[%clk 00:01:23]} {[%emt 00:00:11]} 20. Na4 {[%clk 00:00:31]} Bd4
{[%clk 00:01:13]} {[%emt 00:00:12]} 21. Ng3 {[%clk 00:00:30]} {[%emt 00:00:03]}
bxa3 {[%clk 00:01:05]} {[%emt 00:00:10]} 22. bxa3 {[%clk 00:00:31]} {[%emt
00:00:01]} Nd7 {[%clk 00:01:05]} {[%emt 00:00:02]} 23. Nf5 {[%clk 00:00:30]}
{[%emt 00:00:03]} Ndc5 {[%clk 00:00:49]} {[%emt 00:00:18]} 24. Nc3 {[%clk
00:00:18]} {[%emt 00:00:14]} Rf6 {[%clk 00:00:47]} {[%emt 00:00:04]} 25. Rdf1
{[%clk 00:00:12]} {[%emt 00:00:08]} Ra7 {[%clk 00:00:44]} {[%emt 00:00:04]} 26.
Nxh6+ {[%clk 00:00:12]} {[%emt 00:00:03]} Kf8 {[%clk 00:00:38]} {[%emt
00:00:08]} 27. Rxf6+ {[%clk 00:00:13]} gxf6 {[%clk 00:00:39]} 28. Nf5 {[%emt
00:00:07]} Ng5 {[%clk 00:00:25]} {[%emt 00:00:09]} 29. h4 {[%clk 00:00:12]}
{[%emt 00:00:04]} Nf3 {[%clk 00:00:27]} 30. h5 {[%clk 00:00:13]} {[%emt
00:00:01]} Ne6 {[%clk 00:00:16]} {[%emt 00:00:13]} 31. h6 {[%clk 00:00:13]}
{[%emt 00:00:02]} 1-0

[Event "Grandmaster Triathlon - Blitz (GM1)"]
[Site "Biel, Switzerland"]
[Date "2026.07.19"]
[Round "3.1"]
[White "Suleymanli, Aydin"]
[Black "Aronian, Levon"]
[Result "0-1"]
[TimeControl "3 min + 2 sec"]
[WhiteTitle "-"]
[BlackTitle "-"]
[WhiteFideId "13413937"]
[BlackFideId "13300474"]
[WhiteElo "2559"]
[BlackElo "2700"]

1. d4 {[%clk 00:03:03]} {[%emt 00:00:17]} d5 {[%clk 00:03:03]} 2. Nf3 {[%clk
00:03:03]} {[%emt 00:00:02]} Nf6 {[%clk 00:03:03]} {[%emt 00:00:02]} 3. Bf4
{[%clk 00:03:03]} {[%emt 00:00:01]} c5 {[%clk 00:03:04]} {[%emt 00:00:02]} 4.
e3 {[%clk 00:03:04]} {[%emt 00:00:01]} Nc6 {[%clk 00:03:05]} 5. Nbd2 {[%clk
00:03:05]} Nh5 {[%clk 00:03:06]} {[%emt 00:00:01]} 6. dxc5 {[%clk 00:03:03]}
{[%emt 00:00:04]} Nxf4 {[%clk 00:03:07]} {[%emt 00:00:01]} 7. exf4 {[%clk
00:03:03]} {[%emt 00:00:02]} g6 {[%clk 00:03:07]} {[%emt 00:00:01]} 8. c4
{[%clk 00:02:58]} {[%emt 00:00:07]} Bg7 {[%clk 00:02:58]} {[%emt 00:00:11]} 9.
cxd5 {[%clk 00:02:58]} {[%emt 00:00:02]} Qxd5 {[%clk 00:02:53]} {[%emt
00:00:07]} 10. Bc4 {[%clk 00:02:59]} {[%emt 00:00:01]} Qxc5 {[%clk 00:02:43]}
{[%emt 00:00:13]} 11. O-O {[%clk 00:02:58]} {[%emt 00:00:02]} O-O {[%clk
00:02:35]} {[%emt 00:00:09]} 12. Qa4 {[%clk 00:02:29]} {[%emt 00:00:31]} Bxb2
{[%clk 00:02:13]} {[%emt 00:00:25]} 13. Rab1 {[%clk 00:02:30]} {[%emt
00:00:01]} Bg7 {[%clk 00:01:58]} {[%emt 00:00:17]} 14. Rb5 {[%clk 00:02:13]}
{[%emt 00:00:18]} Qd6 {[%clk 00:01:59]} {[%emt 00:00:02]} 15. g3 {[%clk
00:02:00]} {[%emt 00:00:15]} a6 {[%clk 00:01:59]} {[%emt 00:00:02]} 16. Rb6
{[%clk 00:01:58]} {[%emt 00:00:04]} Qc5 {[%clk 00:01:48]} {[%emt 00:00:13]} 17.
Rbb1 {[%clk 00:01:26]} {[%emt 00:00:34]} Qa5 {[%clk 00:01:48]} {[%emt
00:00:03]} 18. Qb3 {[%clk 00:01:19]} {[%emt 00:00:09]} Bf5 {[%clk 00:01:48]}
{[%emt 00:00:02]} 19. Rbe1 {[%clk 00:01:07]} {[%emt 00:00:15]} Bh3 {[%clk
00:01:22]} {[%emt 00:00:28]} 20. Bxf7+ {[%clk 00:00:09]} {[%emt 00:01:00]} Rxf7
{[%clk 00:01:23]} {[%emt 00:00:01]} 21. Ng5 {[%clk 00:00:05]} {[%emt 00:00:05]}
Raf8 {[%clk 00:01:24]} {[%emt 00:00:01]} 22. Nxh3 {[%clk 00:00:05]} {[%emt
00:00:03]} Nd4 {[%clk 00:01:20]} {[%emt 00:00:06]} 23. Qxb7 {[%clk 00:00:04]}
{[%emt 00:00:03]} Qxd2 {[%clk 00:01:11]} {[%emt 00:00:11]} 24. Ng5 {[%clk
00:00:05]} Qxa2 {[%clk 00:00:55]} {[%emt 00:00:18]} 25. Nxf7 {[%clk 00:00:05]}
{[%emt 00:00:02]} Rxf7 {[%clk 00:00:53]} {[%emt 00:00:04]} 26. Re3 {[%clk
00:00:05]} {[%emt 00:00:02]} e5 {[%clk 00:00:48]} {[%emt 00:00:06]} 27. Qb8+
{[%clk 00:00:04]} {[%emt 00:00:03]} Rf8 {[%clk 00:00:49]} {[%emt 00:00:01]} 28.
Qb4 {[%clk 00:00:05]} {[%emt 00:00:01]} exf4 {[%clk 00:00:45]} {[%emt
00:00:07]} 29. gxf4 {[%clk 00:00:05]} {[%emt 00:00:02]} Qd5 {[%clk 00:00:44]}
{[%emt 00:00:02]} 30. Rc1 {[%clk 00:00:04]} {[%emt 00:00:03]} Nc2 {[%clk
00:00:34]} {[%emt 00:00:12]} 31. Rxc2 {[%clk 00:00:03]} {[%emt 00:00:03]} Qd1+
{[%clk 00:00:35]} 32. Re1 {[%clk 00:00:03]} {[%emt 00:00:02]} Qxc2 {[%clk
00:00:36]} {[%emt 00:00:01]} 0-1

[Event "Grandmaster Triathlon - Blitz (GM1)"]
[Site "Biel, Switzerland"]
[Date "2026.07.19"]
[Round "3.2"]
[White "Martinez Alcantara, Jose Eduardo"]
[Black "Erdogmus, Yagiz Kaan"]
[Result "0-1"]
[TimeControl "3 min + 2 sec"]
[WhiteTitle "-"]
[BlackTitle "-"]
[WhiteFideId "3805662"]
[BlackFideId "44599790"]
[WhiteElo "2641"]
[BlackElo "2546"]

1. e4 {[%clk 00:03:03]} Nc6 {[%clk 00:02:57]} {[%emt 00:00:08]} 2. Nf3 {[%clk
00:03:03]} {[%emt 00:00:02]} d5 {[%clk 00:02:47]} {[%emt 00:00:11]} 3. exd5
{[%clk 00:03:01]} {[%emt 00:00:04]} Qxd5 {[%clk 00:02:48]} {[%emt 00:00:01]} 4.
Nc3 {[%clk 00:03:00]} {[%emt 00:00:03]} Qd6 {[%clk 00:02:49]} 5. h3 {[%clk
00:02:44]} {[%emt 00:00:17]} Bf5 {[%clk 00:02:47]} {[%emt 00:00:03]} 6. d3
{[%clk 00:02:42]} {[%emt 00:00:05]} e5 {[%clk 00:02:27]} {[%emt 00:00:22]} 7.
g3 {[%clk 00:02:34]} {[%emt 00:00:10]} O-O-O {[%clk 00:02:22]} {[%emt
00:00:07]} 8. Bg2 {[%clk 00:02:33]} {[%emt 00:00:03]} Qd7 {[%clk 00:02:21]}
{[%emt 00:00:04]} 9. Be3 {[%clk 00:02:08]} {[%emt 00:00:27]} Nf6 {[%clk
00:02:10]} {[%emt 00:00:13]} 10. Nd2 {[%clk 00:01:50]} {[%emt 00:00:19]} Nd4
{[%clk 00:01:49]} {[%emt 00:00:24]} 11. Bxd4 {[%clk 00:01:47]} {[%emt
00:00:05]} exd4 {[%clk 00:01:49]} {[%emt 00:00:02]} 12. Nce4 {[%clk 00:01:48]}
Re8 {[%clk 00:01:44]} {[%emt 00:00:07]} 13. Qf3 {[%clk 00:01:06]} {[%emt
00:00:44]} Nxe4 {[%clk 00:01:32]} {[%emt 00:00:15]} 14. Nxe4 {[%clk 00:01:06]}
{[%emt 00:00:01]} Bb4+ {[%clk 00:01:11]} {[%emt 00:00:22]} 15. Kf1 {[%clk
00:01:07]} {[%emt 00:00:01]} c6 {[%clk 00:00:46]} {[%emt 00:00:27]} 16. a3
{[%clk 00:01:08]} Be7 {[%clk 00:00:43]} {[%emt 00:00:05]} 17. Qf4 {[%clk
00:00:51]} {[%emt 00:00:20]} f6 {[%clk 00:00:32]} {[%emt 00:00:12]} 18. h4
{[%clk 00:00:50]} {[%emt 00:00:02]} Be6 {[%clk 00:00:31]} {[%emt 00:00:04]} 19.
Re1 {[%clk 00:00:43]} {[%emt 00:00:09]} h5 {[%clk 00:00:15]} {[%emt 00:00:18]}
20. Qd2 {[%clk 00:00:28]} {[%emt 00:00:18]} Kb8 {[%clk 00:00:13]} {[%emt
00:00:04]} 21. b4 {[%clk 00:00:25]} {[%emt 00:00:04]} Bd5 {[%clk 00:00:13]}
{[%emt 00:00:02]} 22. Qd1 {[%clk 00:00:19]} {[%emt 00:00:08]} Qc7 {[%clk
00:00:10]} {[%emt 00:00:05]} 23. Nd2 {[%clk 00:00:20]} {[%emt 00:00:01]} Bf7
{[%clk 00:00:06]} {[%emt 00:00:07]} 24. Bf3 {[%clk 00:00:21]} a5 {[%clk
00:00:06]} {[%emt 00:00:02]} 25. bxa5 {[%clk 00:00:21]} {[%emt 00:00:02]} Qxa5
{[%clk 00:00:07]} {[%emt 00:00:02]} 26. Kg2 {[%clk 00:00:20]} {[%emt 00:00:03]}
Bxa3 {[%clk 00:00:07]} {[%emt 00:00:01]} 27. Rxe8+ {[%clk 00:00:18]} {[%emt
00:00:04]} Rxe8 {[%clk 00:00:09]} 28. Nc4 {[%clk 00:00:13]} {[%emt 00:00:07]}
Bxc4 {[%clk 00:00:07]} {[%emt 00:00:03]} 29. dxc4 {[%clk 00:00:15]} Qc3 {[%clk
00:00:08]} {[%emt 00:00:01]} 30. Bxh5 {[%clk 00:00:13]} {[%emt 00:00:03]} Re5
{[%clk 00:00:10]} 31. Be2 {[%clk 00:00:11]} {[%emt 00:00:03]} Bf8 {[%clk
00:00:07]} {[%emt 00:00:06]} 32. Bd3 {[%clk 00:00:13]} {[%emt 00:00:01]} Qa5
{[%clk 00:00:08]} 33. Qf3 {[%clk 00:00:12]} {[%emt 00:00:02]} Qd8 {[%clk
00:00:06]} {[%emt 00:00:03]} 34. Rb1 {[%clk 00:00:14]} {[%emt 00:00:01]} Kc7
{[%clk 00:00:08]} 35. Qf4 {[%clk 00:00:14]} {[%emt 00:00:02]} Qd6 {[%clk
00:00:09]} 36. Qg4 {[%clk 00:00:15]} {[%emt 00:00:01]} Qd8 {[%clk 00:00:06]}
{[%emt 00:00:04]} 37. Ra1 {[%clk 00:00:13]} {[%emt 00:00:04]} Kb6 {[%clk
00:00:06]} {[%emt 00:00:03]} 38. Qf4 {[%clk 00:00:13]} Bc5 {[%clk 00:00:07]}
{[%emt 00:00:01]} 39. Qd2 {[%clk 00:00:13]} {[%emt 00:00:01]} Kc7 {[%clk
00:00:07]} {[%emt 00:00:02]} 40. Qf4 {[%clk 00:00:13]} {[%emt 00:00:03]} Qe8
{[%clk 00:00:07]} {[%emt 00:00:02]} 41. Qg4 {[%clk 00:00:14]} {[%emt 00:00:01]}
Re7 {[%clk 00:00:07]} {[%emt 00:00:02]} 42. Rb1 {[%clk 00:00:11]} {[%emt
00:00:05]} Qd8 {[%clk 00:00:07]} {[%emt 00:00:01]} 43. Bf5 {[%clk 00:00:09]}
{[%emt 00:00:04]} Qd6 {[%clk 00:00:07]} {[%emt 00:00:02]} 44. Qf3 {[%clk
00:00:09]} {[%emt 00:00:02]} Qe5 {[%clk 00:00:07]} {[%emt 00:00:02]} 45. Bd3
{[%clk 00:00:09]} {[%emt 00:00:02]} Bd6 {[%clk 00:00:08]} {[%emt 00:00:01]} 46.
Ra1 {[%clk 00:00:08]} {[%emt 00:00:03]} Kb8 {[%clk 00:00:08]} {[%emt 00:00:02]}
47. Rb1 {[%clk 00:00:09]} {[%emt 00:00:02]} Kc7 {[%clk 00:00:10]} 48. Rb2
{[%clk 00:00:10]} {[%emt 00:00:01]} Qa5 {[%clk 00:00:09]} {[%emt 00:00:03]} 49.
Qg4 {[%clk 00:00:08]} {[%emt 00:00:03]} Qa1 {[%clk 00:00:08]} {[%emt 00:00:03]}
50. Rb3 {[%clk 00:00:09]} {[%emt 00:00:01]} Bc5 {[%clk 00:00:06]} {[%emt
00:00:04]} 51. Bf5 {[%clk 00:00:05]} {[%emt 00:00:06]} Qe1 {[%clk 00:00:05]}
{[%emt 00:00:02]} 52. Qf4+ {[%clk 00:00:06]} {[%emt 00:00:02]} Qe5 {[%clk
00:00:06]} {[%emt 00:00:01]} 53. Qf3 {[%clk 00:00:08]} Bd6 {[%clk 00:00:06]}
{[%emt 00:00:01]} 54. Bd3 {[%clk 00:00:08]} {[%emt 00:00:02]} Qc5 {[%clk
00:00:06]} {[%emt 00:00:02]} 55. Rb1 {[%clk 00:00:08]} {[%emt 00:00:01]} Qa5
{[%clk 00:00:07]} 56. h5 {[%clk 00:00:06]} {[%emt 00:00:05]} Qg5 {[%clk
00:00:07]} {[%emt 00:00:01]} 57. Rh1 {[%clk 00:00:07]} {[%emt 00:00:01]} Qd2
{[%clk 00:00:04]} {[%emt 00:00:05]} 58. Rh4 {[%clk 00:00:08]} {[%emt 00:00:01]}
Re3 {[%clk 00:00:05]} 59. Qf5 {[%clk 00:00:03]} {[%emt 00:00:07]} Rxg3+ {[%clk
00:00:06]} 0-1